bitfinex/quotes_BTCUSD_20230405
["timestamp","ask_amount","ask_price","bid_price","bid_amount"]
[1680659320136,1.34238292,28593.0,28592.0,0.0211]
[1680659320429,1.7540725,28593.0,28592.0,0.0211]
[1680659321179,1.58777314,28593.0,28592.0,0.0211]
[1680659321430,1.61477314,28593.0,28592.0,0.0211]
[1680659321709,1.20308356,28593.0,28592.0,0.0211]
[1680659322710,1.37845356,28593.0,28592.0,0.0211]
[1680659322929,0.1,28592.0,28591.0,0.00813844]
[1680659323170,1.32633892,28592.0,28587.0,0.0211]
[1680659323416,0.35471056,28588.0,28587.0,0.0211]
[1680659323633,0.77396956,28588.0,28587.0,0.0211]
[1680659323860,1.18740552,28588.0,28587.0,0.0211]
[1680659324538,1.21440552,28588.0,28587.0,0.0211]
[1680659324786,1.10946956,28588.0,28587.0,0.0211]
[1680659325450,1.08246956,28588.0,28587.0,0.0211]
[1680659326405,1.52813867,28588.0,28587.0,0.0211]
[1680659326635,1.08246956,28588.0,28587.0,0.0211]
[1680659326892,1.22776752,28588.0,28587.0,0.0211]
[1680659327554,1.54964905,28588.0,28587.0,0.0211]
[1680659327788,1.22776752,28588.0,28587.0,0.0211]
[1680659328258,1.5661957,28588.0,28587.0,0.0211]
[1680659328715,1.5391957,28588.0,28587.0,0.0211]
[1680659328940,1.20076752,28588.0,28587.0,0.0211]
[1680659329634,1.26361007,28588.0,28587.0,0.0211]
[1680659329864,1.49835383,28588.0,28587.0,0.0211]
[1680659330086,1.49886383,28588.0,28587.0,0.0211]
[1680659330477,1.49835383,28588.0,28587.0,0.0211]
[1680659330932,1.47135383,28588.0,28587.0,0.0211]
[1680659331100,1.49835383,28588.0,28587.0,0.0211]
[1680659331709,1.64824021,28588.0,28587.0,0.0211]
[1680659331910,1.49835383,28588.0,28587.0,0.0211]
[1680659332110,1.14531211,28588.0,28587.0,0.0211]
[1680659332515,1.32021211,28588.0,28587.0,0.0211]
[1680659332719,1.29321211,28588.0,28587.0,0.0211]
[1680659332921,1.32021211,28588.0,28587.0,0.0211]
[1680659333120,1.46228432,28588.0,28587.0,0.0211]
[1680659334057,1.43528432,28588.0,28587.0,0.0211]
[1680659334273,1.46228432,28588.0,28587.0,0.0211]
[1680659337370,1.46400986,28588.0,28587.0,0.0211]
[1680659345919,1.46392421,28588.0,28587.0,0.0211]
[1680659347041,1.47321908,28588.0,28587.0,0.0211]
[1680659347269,1.47270908,28588.0,28587.0,0.0211]
[1680659347718,1.15388553,28588.0,28587.0,0.0211]
[1680659347952,1.46702273,28588.0,28587.0,0.0211]
[1680659350857,1.54502364,28588.0,28587.0,0.0211]
[1680659351305,1.09082273,28588.0,28587.0,0.0211]
[1680659351979,1.45852273,28588.0,28587.0,0.0211]
[1680659352414,1.14538553,28588.0,28587.0,0.0211]
[1680659352618,1.50698972,28588.0,28587.0,0.0211]
[1680659352836,1.51548972,28588.0,28587.0,0.0211]
[1680659353053,1.3254855,28588.0,28587.0,0.0211]
[1680659353511,1.63573417,28588.0,28587.0,0.0211]
[1680659354402,1.4641342,28588.0,28587.0,0.0211]
[1680659356188,1.4646442,28588.0,28587.0,0.0211]
[1680659356631,1.4645542,28588.0,28587.0,0.0211]
[1680659356862,1.0964342,28588.0,28587.0,0.0211]
[1680659357087,1.0609342,28588.0,28587.0,0.0211]
[1680659357309,1.0879342,28588.0,28587.0,0.0211]
[1680659357531,1.0609342,28588.0,28587.0,0.0211]
[1680659357760,1.4556342,28588.0,28587.0,0.0211]
[1680659357984,1.4286342,28588.0,28587.0,0.0211]
[1680659358211,1.4556342,28588.0,28587.0,0.0211]
[1680659358457,1.4286342,28588.0,28587.0,0.0211]
[1680659358671,1.51175693,28588.0,28587.0,0.0211]
[1680659358898,1.4641342,28588.0,28587.0,0.0211]
[1680659359814,1.12688553,28588.0,28587.0,0.0211]
[1680659360287,1.47140033,28588.0,28587.0,0.0211]
[1680659360514,1.12638553,28588.0,28587.0,0.0211]
[1680659360740,1.54292026,28588.0,28587.0,0.0211]
[1680659360964,1.51592026,28588.0,28587.0,0.0211]
[1680659361187,1.54292026,28588.0,28587.0,0.0211]
[1680659362344,1.15338553,28588.0,28587.0,0.0211]
[1680659363287,1.25338553,28588.0,28587.0,0.0211]
[1680659363521,0.78568553,28588.0,28587.0,0.11731837]
[1680659363752,0.78568553,28588.0,28587.0,0.0211]
[1680659365401,1.10139857,28588.0,28587.0,0.0211]
[1680659368857,1.46909857,28588.0,28587.0,0.0211]
[1680659373217,0.77718553,28588.0,28587.0,0.0211]
[1680659374976,0.78568553,28588.0,28587.0,0.0211]
[1680659384400,0.38099911,28588.0,28587.0,0.31496736]
[1680659384619,0.38099911,28588.0,28587.0,0.39864917]
[1680659385291,0.35399911,28588.0,28587.0,0.39864917]
[1680659385505,0.38099911,28588.0,28587.0,0.39964917]
[1680659385722,0.65399911,28588.0,28587.0,0.39864917]
[1680659385944,0.68099911,28588.0,28587.0,0.39964917]
[1680659386637,0.68099911,28588.0,28587.0,0.31614736]
[1680659388202,0.327,28588.0,28587.0,0.31614736]
[1680659388430,0.027,28588.0,28587.0,0.11452881]
[1680659388653,0.027,28588.0,28587.0,0.19813303]
[1680659388867,0.02693511,28588.0,28587.0,0.39860963]
[1680659389086,0.02693511,28588.0,28587.0,0.40739863]
[1680659389305,0.02693511,28588.0,28587.0,0.23982297]
[1680659389753,0.02693511,28588.0,28587.0,0.24000297]
[1680659389969,0.02693511,28588.0,28587.0,0.23982297]
[1680659391342,0.02693511,28588.0,28587.0,0.19889151]
[1680659391549,0.02693511,28588.0,28587.0,0.15697011]
[1680659391771,0.02693511,28588.0,28587.0,0.32454562]
[1680659391987,0.02693511,28588.0,28587.0,0.19889151]
[1680659392205,0.02693511,28588.0,28587.0,0.27229151]
[1680659392430,0.02693511,28588.0,28587.0,0.35101151]
[1680659393148,0.02693511,28588.0,28587.0,0.35083151]
[1680659393583,0.37226188,28595.0,28587.0,0.34983151]
[1680659393804,0.65471056,28594.0,28589.0,0.08373559]
[1680659394022,0.65522056,28594.0,28589.0,0.17995396]
[1680659394719,0.65522056,28594.0,28589.0,0.09621837]
[1680659394951,0.65522056,28594.0,28588.0,0.08391559]
[1680659395201,0.79660737,28594.0,28588.0,0.17995396]
[1680659395400,0.79711737,28594.0,28588.0,0.17995396]
[1680659395869,1.15224589,28594.0,28588.0,0.17995396]
[1680659396096,0.36250592,28593.0,28589.0,0.30187933]
[1680659396324,0.35471056,28592.0,28589.0,0.30087933]
[1680659396552,0.35471056,28592.0,28589.0,0.30099933]
[1680659396553,0.051321,28590.0,28589.0,0.30099933]
[1680659396770,0.40603156,28590.0,28589.0,0.30105933]
[1680659397005,0.40603156,28590.0,28589.0,0.30205933]
[1680659397006,0.35471056,28590.0,28589.0,0.30205933]
[1680659397243,0.40262756,28590.0,28589.0,0.00118]
[1680659397473,0.71112756,28590.0,28589.0,0.001]
[1680659397718,0.71112756,28590.0,28587.0,0.47926322]
[1680659397946,0.051462,28588.0,28587.0,0.47408322]
[1680659398167,0.41518256,28588.0,28587.0,0.47408322]
[1680659398405,0.71518256,28588.0,28587.0,0.47408322]
[1680659398634,0.71518256,28588.0,28587.0,0.0161]
[1680659399766,0.74218256,28588.0,28587.0,0.0161]
[1680659401315,0.7765036,28588.0,28587.0,0.0161]
[1680659411029,0.4765036,28588.0,28587.0,0.0161]
[1680659411742,0.4765036,28588.0,28587.0,0.34235268]
[1680659411971,0.4250416,28588.0,28587.0,0.34235268]
[1680659412211,0.4746746,28588.0,28587.0,0.34235268]
[1680659413574,0.4746746,28588.0,28587.0,0.0161]
[1680659419725,0.4250416,28588.0,28587.0,0.32782406]
[1680659424217,0.38222056,28588.0,28587.0,0.32782406]
[1680659427776,0.02751,28588.0,28587.0,0.09983559]
[1680659427944,0.02751,28588.0,28587.0,0.15042138]
[1680659427945,0.027,28588.0,28587.0,0.15042138]
[1680659428158,0.027,28588.0,28587.0,0.31799689]
[1680659428359,0.027,28588.0,28587.0,0.66190973]
[1680659428585,0.027,28588.0,28587.0,0.19275751]
[1680659428788,0.027,28588.0,28587.0,0.67996933]
[1680659429020,0.71628077,28593.0,28587.0,0.68909833]
[1680659429197,0.35471056,28592.0,28588.0,0.18004163]
[1680659429574,0.35514341,28592.0,28588.0,0.08382326]
[1680659429991,0.35514341,28592.0,28589.0,0.39722376]
[1680659430232,0.027,28592.0,28589.0,0.18022163]
[1680659430452,0.38171056,28592.0,28591.0,0.21834097]
[1680659430703,0.38171056,28592.0,28591.0,0.17708802]
[1680659430926,0.38171056,28592.0,28591.0,0.13521364]
[1680659431134,0.35471056,28592.0,28591.0,0.30271466]
[1680659431357,0.00043285,28594.0,28591.0,0.30271466]
[1680659431577,0.35471056,28592.0,28591.0,0.08393076]
[1680659431785,0.35471056,28592.0,28591.0,0.00018]
[1680659432010,0.35571056,28592.0,28591.0,0.08393076]
[1680659432223,0.35471056,28592.0,28591.0,0.08393076]
[1680659432664,0.35471056,28592.0,28591.0,0.17914744]
[1680659432893,0.37771056,28592.0,28591.0,0.17914744]
[1680659433131,0.023,28592.0,28591.0,0.09322276]
[1680659433329,0.04321907,28592.0,28591.0,0.37251154]
[1680659433590,0.02021907,28592.0,28591.0,0.37256154]
[1680659433855,0.03721907,28592.0,28591.0,0.36358954]
[1680659434077,0.03721907,28592.0,28591.0,0.37251954]
[1680659434735,0.03721907,28592.0,28591.0,0.36358954]
[1680659435624,0.03721907,28592.0,28591.0,0.37306254]
[1680659435844,0.03721907,28592.0,28591.0,0.37282554]
[1680659436057,0.03721907,28592.0,28591.0,0.37264554]
[1680659436301,0.017,28592.0,28591.0,0.37264554]
[1680659437218,0.03577816,28592.0,28591.0,0.37264554]
[1680659437445,0.03577816,28592.0,28591.0,0.37275854]
[1680659437681,0.03577816,28592.0,28591.0,0.36358954]
[1680659437907,0.03577816,28592.0,28591.0,0.37217054]
[1680659438842,0.03577816,28592.0,28591.0,0.37233154]
[1680659439035,0.03577816,28592.0,28591.0,0.20142837]
[1680659439259,0.01688003,28592.0,28591.0,0.20136837]
[1680659439738,0.01688003,28592.0,28591.0,0.19262637]
[1680659440213,0.03540961,28592.0,28591.0,0.19262637]
[1680659440441,0.03540961,28592.0,28590.0,0.00018]
[1680659440442,0.39012017,28592.0,28590.0,0.00018]
[1680659440684,0.39012017,28592.0,28590.0,0.13878075]
[1680659441399,0.37324014,28592.0,28590.0,0.13878075]
[1680659441628,0.38324014,28592.0,28590.0,0.13878075]
[1680659442123,0.35471056,28591.0,28590.0,0.13878075]
[1680659442353,0.41323841,28591.0,28588.0,0.00018]
[1680659442600,0.047502,28589.0,28588.0,0.00012]
[1680659442851,0.4441771,28589.0,28587.0,0.0161]
[1680659443089,0.40622256,28588.0,28587.0,0.0161]
[1680659443317,0.35471056,28588.0,28587.0,0.0161]
[1680659443532,0.40399556,28588.0,28587.0,0.0161]
[1680659443773,0.40475256,28588.0,28587.0,0.0161]
[1680659443997,0.43175256,28588.0,28587.0,0.0161]
[1680659444923,0.43218541,28588.0,28587.0,0.0161]
[1680659446556,0.40518541,28588.0,28587.0,0.0161]
[1680659446793,0.43969386,28588.0,28587.0,0.0161]
[1680659447028,0.46669386,28588.0,28587.0,0.0161]
[1680659448770,0.38214341,28588.0,28587.0,0.32190456]
[1680659451322,0.39959435,28588.0,28587.0,0.32190456]
[1680659454664,0.04488379,28588.0,28587.0,0.32190456]
[1680659454893,0.04479379,28588.0,28587.0,0.31815166]
[1680659455129,0.04445094,28588.0,28587.0,0.52498543]
[1680659455354,0.027,28588.0,28587.0,0.69248645]
[1680659455594,0.027,28588.0,28587.0,0.52498543]
[1680659455821,0.00043285,28591.0,28587.0,0.52498543]
[1680659456058,0.36241036,28592.0,28588.0,0.09211628]
[1680659456059,0.36284321,28592.0,28588.0,0.09211628]
[1680659456302,0.71755377,28592.0,28588.0,0.08370428]
[1680659456762,0.35471056,28592.0,28588.0,0.18496109]
[1680659456992,0.35771056,28592.0,28588.0,0.18496109]
[1680659457228,0.35471056,28591.0,28588.0,0.18496109]
[1680659457682,0.35471056,28591.0,28588.0,0.10125681]
[1680659457896,0.35471056,28591.0,28588.0,0.18496109]
[1680659458129,0.35471056,28591.0,28588.0,0.10125681]
[1680659458348,0.35471056,28591.0,28589.0,0.32411989]
[1680659458568,0.35471056,28591.0,28589.0,0.32429989]
[1680659459406,0.35771056,28591.0,28589.0,0.32429989]
[1680659459623,0.35471056,28591.0,28589.0,0.32429989]
[1680659459844,0.36471056,28591.0,28589.0,0.32429989]
[1680659462236,0.36471056,28591.0,28590.0,0.15907352]
[1680659462467,0.36471056,28591.0,28590.0,0.15925352]
[1680659463249,0.35471056,28591.0,28590.0,0.15925352]
[1680659463465,0.37071056,28591.0,28590.0,0.15925352]
[1680659466232,0.39371468,28591.0,28590.0,0.15925352]
[1680659466919,0.46041592,28591.0,28590.0,0.00012]
[1680659467143,0.46041592,28591.0,28588.0,0.00018]
[1680659467144,0.86165467,28591.0,28588.0,0.00018]
[1680659467374,0.048535,28589.0,28587.0,0.01628]
[1680659467599,0.40670056,28588.0,28587.0,0.01628]
[1680659468356,0.40670056,28588.0,28587.0,0.32841737]
[1680659468581,0.35471056,28588.0,28587.0,0.32841737]
[1680659468805,0.35471056,28588.0,28587.0,0.01628]
[1680659469026,0.38171056,28588.0,28587.0,0.12840579]
[1680659470288,0.027,28588.0,28587.0,0.01628]
[1680659470479,0.027,28588.0,28587.0,0.37315344]
[1680659470707,0.027,28588.0,28587.0,0.45703772]
[1680659472224,0.027,28588.0,28587.0,0.44811472]
[1680659472468,0.04953649,28588.0,28587.0,0.44811472]
[1680659473390,0.40424705,28588.0,28587.0,0.02188]
[1680659473612,0.40424705,28588.0,28587.0,0.144311]
[1680659473838,0.40424705,28588.0,28587.0,0.12307428]
[1680659473839,0.04953649,28588.0,28587.0,0.12307428]
[1680659474084,0.04953649,28588.0,28587.0,0.34111552]
[1680659474318,0.027,28588.0,28587.0,0.48226472]
[1680659474991,0.027,28588.0,28587.0,0.48277972]
[1680659475208,0.027,28588.0,28587.0,0.55712896]
[1680659475435,0.04953649,28588.0,28587.0,0.55712896]
[1680659475660,0.04953649,28588.0,28587.0,0.47339572]
[1680659475925,0.04953649,28588.0,28587.0,0.55713516]
[1680659476143,0.04953649,28588.0,28587.0,0.43157966]
[1680659476581,0.04953649,28588.0,28587.0,0.55713516]
[1680659476770,0.04953649,28588.0,28587.0,0.43157966]
[1680659479325,0.04953649,28588.0,28587.0,0.55713516]
[1680659481226,0.04953649,28588.0,28587.0,0.55717335]
[1680659481427,0.04953649,28588.0,28587.0,0.47339572]
[1680659486078,0.04953649,28588.0,28587.0,0.47327572]
[1680659486309,0.40424705,28588.0,28587.0,0.1474355]
[1680659486533,0.40424705,28588.0,28587.0,0.10009707]
[1680659486534,0.45269805,28588.0,28587.0,0.10009707]
[1680659486755,0.45258389,28588.0,28587.0,0.0161]
[1680659487000,0.79369687,28588.0,28587.0,0.0161]
[1680659487227,0.80219687,28588.0,28587.0,0.0161]
[1680659487480,1.10262972,28588.0,28587.0,0.0161]
[1680659488785,1.07574388,28588.0,28587.0,0.0161]
[1680659489027,1.10274388,28588.0,28587.0,0.0161]
[1680659493146,0.7531309,28588.0,28587.0,0.0161]
[1680659495806,1.1194578,28588.0,28587.0,0.0161]
[1680659496093,0.7616309,28588.0,28587.0,0.0161]
[1680659496354,1.18133267,28588.0,28587.0,0.0161]
[1680659496850,1.1293309,28588.0,28587.0,0.0161]
[1680659497322,1.12889805,28588.0,28587.0,0.01388318]
[1680659497588,1.29446878,28588.0,28587.0,0.01388318]
[1680659497863,1.54324323,28588.0,28587.0,0.01388318]
[1680659498127,0.4677,28587.0,28586.0,0.017686]
[1680659498387,1.18033656,28587.0,28586.0,0.017686]
[1680659498669,1.08033656,28587.0,28586.0,0.017686]
[1680659499176,1.22667494,28587.0,28586.0,0.017686]
[1680659499423,1.27322663,28587.0,28586.0,0.01551172]
[1680659500175,1.27322663,28587.0,28586.0,0.01251172]
[1680659500444,1.27322663,28587.0,28586.0,0.01038926]
[1680659500968,1.27322663,28587.0,28586.0,0.00180926]
[1680659501451,0.1,28586.0,28580.0,0.0212]
[1680659501712,0.55528337,28585.0,28580.0,0.0212]
[1680659501975,0.350348,28584.0,28580.0,0.02126]
[1680659502243,0.40567056,28583.0,28580.0,0.02138]
[1680659502503,0.050286,28581.0,28580.0,0.02138]
[1680659502763,0.80183459,28581.0,28580.0,0.02138]
[1680659503055,1.10183459,28581.0,28580.0,0.02138]
[1680659504464,0.73649656,28581.0,28580.0,0.02138]
[1680659504634,1.16463866,28581.0,28580.0,0.02138]
[1680659504884,1.16463866,28581.0,28580.0,0.0162]
[1680659505389,1.18931289,28581.0,28580.0,0.01373258]
[1680659506496,1.16463866,28581.0,28580.0,0.01373258]
[1680659506760,1.16463866,28581.0,28580.0,0.01365393]
[1680659507310,0.73649656,28581.0,28580.0,0.01365393]
[1680659508113,0.77122513,28581.0,28580.0,0.01365393]
[1680659508630,0.74822513,28581.0,28580.0,0.01365393]
[1680659508851,1.1967427,28581.0,28580.0,0.01365393]
[1680659509082,0.77522513,28581.0,28580.0,0.01365393]
[1680659509326,1.14146038,28581.0,28580.0,0.01365393]
[1680659509793,0.77522513,28581.0,28580.0,0.01365393]
[1680659510707,0.85279093,28581.0,28580.0,0.01365393]
[1680659511391,1.12271619,28581.0,28580.0,0.01365393]
[1680659512780,0.77522513,28581.0,28580.0,0.01365393]
[1680659513006,0.77522513,28581.0,28577.0,0.01353542]
[1680659513007,0.1,28580.0,28577.0,0.01353542]
[1680659513237,0.40334356,28578.0,28577.0,0.01353542]
[1680659513471,1.0031876,28578.0,28577.0,0.01353542]
[1680659513698,1.4866476,28578.0,28577.0,0.01353542]
[1680659514167,1.2116876,28578.0,28577.0,0.01353542]
[1680659514409,0.73927641,28578.0,28568.0,0.0212]
[1680659514646,0.50151881,28577.0,28568.0,0.2131647]
[1680659514889,0.40582556,28576.0,28568.0,0.2131647]
[1680659515121,0.49180681,28575.0,28568.0,0.11694633]
[1680659515356,0.40361756,28574.0,28568.0,0.11694633]
[1680659515586,0.48971581,28573.0,28568.0,0.11694633]
[1680659515810,0.48971581,28573.0,28568.0,0.0212]
[1680659515811,0.35471056,28572.0,28568.0,0.0212]
[1680659516038,0.3,28571.0,28568.0,0.0212]
[1680659516232,0.3,28571.0,28568.0,0.16110469]
[1680659516487,0.3,28571.0,28568.0,0.16128469]
[1680659517161,0.3,28571.0,28569.0,0.18759016]
[1680659517444,0.027,28571.0,28569.0,0.18777016]
[1680659517864,0.027,28571.0,28569.0,0.18771016]
[1680659518537,0.027,28571.0,28569.0,0.18777016]
[1680659519031,0.34341528,28572.0,28569.0,0.18777016]
[1680659519276,0.023,28571.0,28569.0,0.18771016]
[1680659519496,0.023,28571.0,28569.0,0.18777016]
[1680659519939,0.34341528,28572.0,28569.0,0.18777016]
[1680659520208,0.34341528,28572.0,28569.0,0.18771016]
[1680659520469,0.42381304,28571.0,28569.0,0.18771016]
[1680659520725,0.42381304,28571.0,28569.0,0.18777016]
[1680659521764,0.42381304,28571.0,28569.0,0.00018]
[1680659522020,0.42381304,28571.0,28568.0,0.2339117]
[1680659522281,0.42381304,28571.0,28568.0,0.2340917]
[1680659522572,0.44681304,28571.0,28568.0,0.2340917]
[1680659523356,0.42381304,28571.0,28568.0,0.2340917]
[1680659523885,0.43981304,28571.0,28568.0,0.2340917]
[1680659527014,0.43981304,28571.0,28570.0,0.00944]
[1680659527015,0.016,28571.0,28570.0,0.00944]
[1680659528038,0.72498777,28574.0,28570.0,0.00944]
[1680659528315,0.027,28571.0,28570.0,0.00944]
[1680659528802,0.027,28571.0,28570.0,0.26400777]
[1680659529053,0.027,28571.0,28570.0,0.24650777]
[1680659529310,0.027,28571.0,28570.0,0.26400777]
[1680659529562,0.3,28572.0,28570.0,0.24650777]
[1680659529816,0.3,28572.0,28570.0,0.23724777]
[1680659530586,0.3,28572.0,28570.0,0.32106484]
[1680659531092,0.3,28572.0,28571.0,0.0092]
[1680659531350,0.027,28572.0,28571.0,0.14919838]
[1680659531602,0.027,28572.0,28571.0,0.13999838]
[1680659531856,0.30043285,28574.0,28571.0,0.13999838]
[1680659532095,0.027,28572.0,28571.0,0.13999838]
[1680659533632,0.027,28572.0,28571.0,0.11069952]
[1680659538445,0.027,28572.0,28570.0,0.1255555]
[1680659538706,0.327,28572.0,28569.0,0.23854417]
[1680659538974,0.327,28572.0,28570.0,0.1311024]
[1680659540040,0.68171056,28572.0,28570.0,0.2566579]
[1680659540316,0.68214341,28572.0,28570.0,0.2566579]
[1680659541105,0.68214341,28572.0,28570.0,0.1311024]
[1680659541355,0.68171056,28572.0,28571.0,0.1255555]
[1680659541601,1.03714989,28572.0,28571.0,0.1255555]
[1680659541818,0.73025941,28572.0,28571.0,0.1255555]
[1680659542343,0.68214341,28572.0,28571.0,0.1255555]
[1680659542836,0.70689541,28572.0,28571.0,0.1255555]
[1680659543347,0.68214341,28572.0,28571.0,0.1255555]
[1680659543593,0.73305941,28572.0,28571.0,0.1255555]
[1680659543848,0.68214341,28572.0,28571.0,0.1255555]
[1680659544097,0.72790841,28572.0,28571.0,0.1255555]
[1680659544347,0.72952841,28572.0,28571.0,0.1255555]
[1680659544603,0.68214341,28572.0,28571.0,0.1255555]
[1680659544856,0.73080941,28572.0,28571.0,0.1255555]
[1680659545129,0.68214341,28572.0,28571.0,0.1255555]
[1680659545412,1.25029236,28572.0,28571.0,0.1255555]
[1680659545660,1.28175383,28572.0,28570.0,6e-05]
[1680659545857,0.40375256,28571.0,28569.0,0.08379263]
[1680659546122,0.348409,28570.0,28569.0,0.08379263]
[1680659546336,0.70355241,28570.0,28568.0,0.23054813]
[1680659546577,0.40369656,28569.0,28568.0,0.1467555]
[1680659546809,0.70412941,28569.0,28568.0,0.23058026]
[1680659547064,0.70412941,28569.0,28568.0,0.1467555]
[1680659547529,1.12689453,28569.0,28568.0,0.1467555]
[1680659547997,1.12689453,28569.0,28568.0,0.23055261]
[1680659548694,1.12689453,28569.0,28568.0,0.10499711]
[1680659548935,1.14289453,28569.0,28568.0,0.10499711]
[1680659549390,1.14289453,28569.0,28568.0,0.1467555]
[1680659550137,1.14289453,28569.0,28568.0,0.23058175]
[1680659550820,1.14289453,28569.0,28568.0,0.10502625]
[1680659551062,0.31643285,28569.0,28568.0,0.10502625]
[1680659551296,0.31643285,28569.0,28568.0,0.23845849]
[1680659551529,0.31643285,28569.0,28568.0,0.36401399]
[1680659552000,0.31643285,28569.0,28568.0,0.36400694]
[1680659552456,0.31643285,28569.0,28568.0,0.2305747]
[1680659552701,0.67114341,28569.0,28568.0,0.23057541]
[1680659552926,0.67114341,28569.0,28568.0,0.1467555]
[1680659553148,0.67114341,28569.0,28568.0,0.23057481]
[1680659553353,0.67114341,28569.0,28568.0,0.23057509]
[1680659553579,0.67114341,28569.0,28568.0,0.1467555]
[1680659553818,0.67114341,28569.0,28568.0,0.23056147]
[1680659554050,0.67114341,28569.0,28568.0,0.1467555]
[1680659555624,0.67114341,28569.0,28568.0,0.2305712]
[1680659556119,0.67114341,28569.0,28568.0,0.1467555]
[1680659558916,1.06455788,28569.0,28568.0,0.1467555]
[1680659561311,1.06455788,28569.0,28568.0,0.10501059]
[1680659563109,1.06455788,28569.0,28568.0,0.0212]
[1680659563325,1.06412503,28569.0,28568.0,0.0212]
[1680659563541,1.06455788,28569.0,28568.0,0.0212]
[1680659564024,0.316,28569.0,28568.0,0.10501059]
[1680659564194,0.31643285,28569.0,28568.0,0.28679468]
[1680659564396,0.01643285,28569.0,28568.0,0.28679468]
[1680659564619,0.01643285,28569.0,28568.0,0.27812768]
[1680659564620,0.016,28569.0,28568.0,0.27812768]
[1680659564852,0.016,28569.0,28568.0,0.30950968]
[1680659565322,0.016,28569.0,28568.0,0.30042768]
[1680659565555,0.016,28569.0,28568.0,0.4679287]
[1680659565771,0.01591904,28569.0,28568.0,0.3511522]
[1680659565994,0.01591904,28569.0,28568.0,0.3512722]
[1680659566218,0.01591904,28569.0,28568.0,0.3513322]
[1680659566422,0.01591904,28569.0,28568.0,0.3425532]
[1680659566639,0.01591904,28569.0,28568.0,0.3600552]
[1680659566853,0.01591904,28569.0,28568.0,0.3687952]
[1680659567269,0.01591904,28569.0,28568.0,0.3600552]
[1680659568357,0.01591904,28569.0,28568.0,1.0887449]
[1680659568632,0.01591904,28569.0,28568.0,1.30113768]
[1680659568858,1.904e-05,28569.0,28568.0,1.31763851]
[1680659569304,0.34325381,28578.0,28568.0,1.31763851]
[1680659569539,0.48515062,28578.0,28574.0,0.2094189]
[1680659569759,0.34325381,28578.0,28575.0,0.11371537]
[1680659570213,0.34325381,28578.0,28575.0,0.017497]
[1680659570429,0.00043285,28578.0,28575.0,0.017497]
[1680659570653,0.008,28578.0,28576.0,0.60759136]
[1680659570875,0.008,28578.0,28577.0,0.026688]
[1680659570876,0.00043285,28578.0,28577.0,0.026688]
[1680659571105,0.01543285,28578.0,28577.0,0.11045556]
[1680659571326,0.00043285,28580.0,28577.0,1.2752199]
[1680659571558,0.02332,28587.0,28579.0,0.81781425]
[1680659571559,0.38685677,28585.0,28579.0,0.81781425]
[1680659571778,0.38728962,28585.0,28581.0,0.385194]
[1680659572008,0.38728962,28585.0,28582.0,0.3677]
[1680659572236,0.33388087,28583.0,28579.0,0.08374936]
[1680659572553,0.33388087,28583.0,28579.0,0.10142336]
[1680659572554,0.31148087,28583.0,28579.0,0.10142336]
[1680659572765,0.31148087,28583.0,28581.0,0.0112]
[1680659572963,0.00043285,28585.0,28581.0,0.0112]
[1680659573170,0.02332,28587.0,28581.0,0.10741837]
[1680659573369,0.001,28583.0,28582.0,0.25799152]
[1680659573581,0.001,28583.0,28582.0,0.17047615]
[1680659573793,0.32947324,28586.0,28582.0,0.17047615]
[1680659573794,0.3,28585.0,28582.0,0.17047615]
[1680659574006,0.008,28583.0,28582.0,0.16177315]
[1680659574230,0.3,28585.0,28582.0,0.17064015]
[1680659574231,0.30043285,28585.0,28582.0,0.17064015]
[1680659574439,0.3,28585.0,28582.0,0.16177315]
[1680659574665,0.62640448,28585.0,28582.0,0.16177315]
[1680659575611,0.015,28583.0,28582.0,0.16277315]
[1680659575837,0.62683733,28585.0,28582.0,0.17073615]
[1680659576066,0.64140448,28585.0,28582.0,0.16277315]
[1680659577004,0.45108453,28584.0,28582.0,0.16277315]
[1680659578149,0.45108453,28584.0,28582.0,0.001]
[1680659578628,0.45108453,28584.0,28581.0,0.16207163]
[1680659578854,0.45108453,28584.0,28582.0,0.001]
[1680659579052,0.46651738,28584.0,28582.0,0.001]
[1680659580221,0.46608453,28584.0,28582.0,0.001]
[1680659580728,0.46608453,28584.0,28582.0,0.11369018]
[1680659580978,0.46608453,28584.0,28583.0,0.0128]
[1680659582005,0.45108453,28584.0,28583.0,0.0128]
[1680659582249,0.46808453,28584.0,28583.0,0.0148]
[1680659582496,0.017,28584.0,28583.0,0.75470256]
[1680659582745,0.017,28584.0,28583.0,0.84232956]
[1680659582984,0.017,28584.0,28583.0,0.84250956]
[1680659583204,0.017,28584.0,28583.0,0.97618101]
[1680659583426,0.017,28584.0,28583.0,0.97600101]
[1680659584080,0.017,28584.0,28583.0,0.97618101]
[1680659584765,0.45841406,28587.0,28583.0,0.97418101]
[1680659584968,0.001,28584.0,28583.0,0.63747045]
[1680659585206,0.001,28584.0,28583.0,0.55875045]
[1680659585419,0.001,28584.0,28583.0,0.63747045]
[1680659585631,0.45841406,28587.0,28583.0,0.61947045]
[1680659585856,0.45841406,28587.0,28584.0,0.20291411]
[1680659586076,0.45841406,28587.0,28585.0,0.07872]
[1680659586301,0.45841406,28587.0,28585.0,0.0789]
[1680659586971,0.02332,28587.0,28585.0,0.0789]
[1680659587209,0.02332,28587.0,28585.0,0.07872]
[1680659588181,0.02532,28587.0,28586.0,0.008725]
[1680659588829,0.02532,28587.0,28585.0,0.07872]
[1680659589052,0.02332,28587.0,28584.0,0.18623946]
[1680659589261,0.02532,28587.0,28586.0,0.009158]
[1680659589482,0.02332,28587.0,28586.0,0.009158]
[1680659589698,0.03132,28587.0,28586.0,0.001]
[1680659590599,0.03132,28587.0,28585.0,0.22855105]
[1680659590600,0.02332,28587.0,28585.0,0.22855105]
[1680659590826,0.02332,28587.0,28586.0,0.001]
[1680659590827,0.03132,28587.0,28586.0,0.001]
[1680659593041,0.03123564,28587.0,28586.0,0.001]
[1680659593262,0.38471625,28587.0,28586.0,0.001]
[1680659593490,0.77257692,28587.0,28586.0,0.001]
[1680659594865,0.72403092,28587.0,28586.0,0.001]
[1680659595129,0.72403092,28587.0,28583.0,0.19030151]
[1680659595130,0.71603092,28587.0,28583.0,0.19018151]
[1680659595392,0.71603092,28587.0,28586.0,0.001]
[1680659595716,0.73003092,28587.0,28586.0,0.001]
[1680659595967,0.78141592,28587.0,28586.0,0.001]
[1680659596240,0.77883892,28587.0,28586.0,0.001]
[1680659596510,0.76483892,28587.0,28583.0,0.11146151]
[1680659596761,0.3779462,28587.0,28583.0,0.11146151]
[1680659597049,0.41905215,28586.0,28583.0,0.11146151]